bitfinex/quotes_ETHUSD_20250216
["timestamp","ask_amount","ask_price","bid_price","bid_amount"]
[1739687900533,3.6789,2718.2,2718.1,0.12778077]
[1739687900952,9.70963644,2718.6,2718.1,0.12778077]
[1739687901167,3.94263,2718.5,2718.1,0.12778077]
[1739687901462,3.94263,2718.5,2718.2,0.4501]
[1739687901963,3.67863,2718.4,2718.3,0.12757022]
[1739687902162,3.67876,2718.3,2718.2,0.4501]
[1739687902552,3.67863,2718.5,2718.2,0.4501]
[1739687902755,9.20280644,2718.6,2718.2,0.4501]
[1739687902957,8.93880644,2718.6,2718.2,0.4501]
[1739687903431,5.26037644,2718.6,2718.2,4.106671]
[1739687903637,5.26037644,2718.6,2718.4,3.67862]
[1739687903870,3.94175,2719.1,2718.5,4.12857]
[1739687904066,3.94175,2719.1,2718.5,3.67847]
[1739687904271,3.94175,2719.1,2718.6,0.4501]
[1739687904474,3.94175,2719.1,2718.6,4.12846]
[1739687904635,7.35501,2719.3,2718.6,4.12846]
[1739687904972,3.67769,2719.1,2718.7,0.4501]
[1739687905743,7.35549,2719.1,2718.7,0.4501]
[1739687905935,3.67769,2719.1,2718.7,0.4501]
[1739687906236,3.6781,2718.8,2718.5,0.4501]
[1739687909043,3.67789,2719.0,2718.5,0.4501]
[1739687909477,3.67798,2718.9,2718.5,0.4501]
[1739687909680,3.67798,2718.9,2718.6,0.5399365]
[1739687909976,3.67798,2718.9,2718.6,0.1270715]
[1739687910456,3.67815,2718.8,2718.6,0.1270715]
[1739687910655,3.67798,2718.9,2718.6,0.1270715]
[1739687911057,3.67805,2718.9,2718.6,0.1270715]
[1739687912699,3.67782,2719.0,2718.6,3.8054015]
[1739687913168,3.67775,2719.1,2718.7,0.4501]
[1739687913371,3.67775,2719.1,2718.7,0.57706797]
[1739687915297,3.67755,2719.2,2718.7,4.25522797]
[1739687915799,3.67795,2718.9,2718.7,0.12696797]
[1739687915991,3.67741,2719.3,2718.7,0.12696797]
[1739687915992,3.67777,2719.1,2718.7,0.12696797]
[1739687916195,3.67777,2719.1,2718.7,0.55251077]
[1739687916374,3.67777,2719.1,2718.8,0.4501]
[1739687916573,3.67777,2719.1,2718.8,0.57668746]
[1739687916775,0.264,2719.4,2718.9,3.67786]
[1739687916974,3.67736,2719.4,2718.9,3.80434395]
[1739687917196,3.67749,2719.3,2718.9,0.12648395]
[1739687917397,3.67749,2719.3,2718.9,0.59449562]
[1739687919001,3.67736,2719.4,2718.9,0.59449562]
[1739687919372,7.35474,2719.4,2718.9,0.59449562]
[1739687919809,3.67742,2719.3,2718.9,0.59449562]
[1739687925376,7.35494,2719.3,2718.9,0.59449562]
[1739687925813,3.67742,2719.3,2718.9,0.59449562]
[1739687927430,7.35491,2719.3,2718.9,0.59449562]
[1739687928018,3.67742,2719.3,2718.9,0.59449562]
[1739687929317,7.35497,2719.3,2718.9,0.59449562]
[1739687929612,3.67742,2719.3,2718.9,0.59449562]
[1739687929817,7.35496,2719.3,2718.9,0.59449562]
[1739687930345,7.35492,2719.3,2718.9,0.59449562]
[1739687930619,3.67742,2719.3,2718.9,0.59449562]
[1739687932889,3.67742,2719.3,2718.9,4.27239562]
[1739687933517,3.67724,2719.5,2718.9,4.27239562]
[1739687934027,3.67728,2719.4,2718.9,4.27239562]
[1739687934604,3.67742,2719.3,2718.9,4.27239562]
[1739687936237,7.35491,2719.3,2718.9,4.27239562]
[1739687936397,3.67742,2719.3,2718.9,0.59449562]
[1739687937231,1.0159,2719.6,2718.9,0.59449562]
[1739687937428,3.67749,2719.3,2718.9,0.12648395]
[1739687939410,4.41452105,2719.8,2718.9,0.12648395]
[1739687939411,3.67687,2719.7,2719.2,3.67748]
[1739687939623,3.94094,2719.7,2719.3,1.40633996]
[1739687939826,3.67694,2719.7,2719.4,0.4501]
[1739687940222,3.67694,2719.7,2719.5,0.12568866]
[1739687940422,3.67691,2719.7,2719.5,0.12568866]
[1739687940636,3.67701,2719.6,2719.5,0.12568866]
[1739687940798,4.412385,2719.6,2719.5,0.12568866]
[1739687941047,5.243785,2719.6,2719.5,0.12568866]
[1739687941205,3.67718,2719.5,2719.0,4.12786]
[1739687941708,3.67689,2719.7,2719.2,3.67754]
[1739687942636,7.35385,2719.7,2719.2,3.67754]
[1739687942833,3.67689,2719.7,2719.2,3.67754]
[1739687943037,3.67689,2719.7,2719.3,4.12748]
[1739687943344,3.67674,2719.8,2719.4,3.67726]
[1739687943706,3.67674,2719.8,2719.3,0.4501]
[1739687943913,3.67674,2719.8,2719.3,4.12749]
[1739687944119,3.67674,2719.8,2719.3,4.50500111]
[1739687945108,0.264,2719.9,2719.3,5.91129107]
[1739687945341,3.9406,2719.9,2719.4,3.67719]
[1739687945516,3.6766,2719.9,2719.4,3.67719]
[1739687945846,3.67639,2720.1,2719.7,0.4501]
[1739687946041,3.6763,2720.2,2719.7,4.1269]
[1739687946217,7.35261,2720.2,2719.7,4.1269]
[1739687946407,3.6763,2720.2,2719.7,4.1269]
[1739687946608,3.67634,2720.1,2719.7,4.1269]
[1739687946810,3.67634,2720.1,2719.7,0.4501]
[1739687947439,3.67649,2720.0,2719.7,0.4501]
[1739687948814,3.67638,2720.1,2719.7,1.003449]
[1739687949008,3.67633,2720.1,2719.7,2.40978896]
[1739687949641,3.67628,2720.2,2719.7,1.003449]
[1739687950006,3.67642,2720.1,2719.7,1.003449]
[1739687951155,3.67651,2720.0,2719.7,1.003449]
[1739687951851,5.52437644,2720.4,2719.8,0.4680319]
[1739687951852,9.20032644,2720.4,2719.8,0.4680319]
[1739687952056,3.67626,2720.2,2719.7,4.1269]
[1739687952555,3.67638,2720.1,2719.7,0.4501]
[1739687952934,3.67626,2720.2,2719.7,4.12695]
[1739687953336,7.35257,2720.2,2719.7,4.12695]
[1739687953737,3.6764,2720.1,2719.7,0.4501]
[1739687954056,3.6764,2720.1,2719.7,0.862797]
[1739687955254,7.35254,2720.2,2719.8,0.12498189]
[1739687955430,3.67634,2720.1,2719.8,0.12498189]
[1739687955640,3.67634,2720.1,2719.7,4.539627]
[1739687955839,3.67634,2720.1,2719.9,0.12487845]
[1739687956023,3.67634,2720.1,2719.8,0.12498189]
[1739687956336,3.67633,2720.1,2719.9,0.12487845]
[1739687957158,3.67633,2720.1,2720.0,0.12477501]
[1739687957352,3.67633,2720.1,2719.7,0.4501]
[1739687957545,3.67633,2720.1,2720.0,0.12477501]
[1739687957748,3.67633,2720.1,2719.7,0.4501]
[1739687957947,3.67633,2720.1,2720.0,0.12462468]
[1739687958146,3.67626,2720.2,2719.7,0.4501]
[1739687958326,3.67649,2720.0,2719.7,0.4501]
[1739687958759,3.67639,2720.1,2719.7,0.4501]
[1739687959058,3.67629,2720.2,2719.7,0.4501]
[1739687959264,3.67629,2720.2,2719.7,4.539664]
[1739687960364,7.3526,2720.2,2719.7,4.539664]
[1739687960552,3.67629,2720.2,2719.7,4.539664]
[1739687960854,7.35257,2720.2,2719.7,4.539664]
[1739687961059,3.67628,2720.2,2719.7,4.539664]
[1739687961266,3.67608,2720.3,2719.8,4.4983804]
[1739687961765,3.67626,2720.2,2719.8,0.8216604]
[1739687963462,3.67626,2720.2,2719.8,4.4983504]
[1739687963924,3.94003,2720.4,2719.8,0.8216604]
[1739687964124,3.67621,2720.2,2719.7,4.12691]
[1739687964661,3.67633,2720.1,2719.7,4.12691]
[1739687965640,3.67633,2720.1,2719.7,4.12696]
[1739687966559,3.67633,2720.1,2719.7,0.4501]
[1739687969930,3.67633,2720.1,2719.8,0.12488621]
[1739687970133,3.67633,2720.1,2719.7,0.4501]
[1739687970334,3.67633,2720.1,2719.8,0.12488621]
[1739687970668,3.67633,2720.1,2719.7,0.4501]
[1739687970968,3.67633,2720.1,2719.8,0.12488621]
[1739687971168,3.67633,2720.1,2719.7,0.4501]
[1739687971389,3.67633,2720.1,2719.9,0.12478277]
[1739687971586,3.67633,2720.1,2719.7,0.4501]
[1739687971766,7.35279,2720.1,2719.7,0.4501]
[1739687972083,3.67633,2720.1,2719.7,0.4501]
[1739687972238,3.67647,2720.0,2719.8,0.12488621]
[1739687972435,3.67647,2720.0,2719.7,0.4501]
[1739687972768,3.67647,2720.0,2719.9,0.12478277]
[1739687972967,3.67647,2720.0,2719.8,0.12488621]
[1739687973172,0.7733,2720.3,2719.9,3.67656]
[1739687973343,0.264,2720.4,2719.9,0.12478277]
[1739687973550,7.35228,2720.3,2719.9,0.12478277]
[1739687974047,3.6762,2720.2,2719.9,0.12478277]
[1739687975743,3.67612,2720.3,2719.9,0.12478277]
[1739687976351,7.35231,2720.3,2719.9,0.12478277]
[1739687976884,3.6762,2720.2,2719.9,0.12478277]
[1739687977869,3.67612,2720.3,2719.9,0.12478277]
[1739687978072,7.35227,2720.3,2719.9,0.12478277]
[1739687978268,3.67622,2720.2,2719.9,0.12478277]
[1739687978850,3.67622,2720.2,2719.7,5.53302811]
[1739687979083,3.67622,2720.2,2720.0,0.12464858]
[1739687979250,3.67622,2720.2,2719.7,5.53302811]
[1739687979462,3.67622,2720.2,2720.1,0.12454516]
[1739687979662,3.67622,2720.2,2719.7,5.53302811]
[1739687979861,3.6762,2720.2,2720.1,0.12454516]
[1739687980068,3.67637,2720.1,2719.7,1.85616811]
[1739687980249,3.67637,2720.1,2719.7,1.37110681]
[1739687982335,3.67637,2720.1,2719.7,0.4501]
[1739687983173,3.6762,2720.2,2719.7,0.4501]
[1739687983475,3.6762,2720.2,2719.7,4.12692]
[1739687984078,3.6762,2720.2,2719.7,0.4501]
[1739687984242,3.67643,2720.1,2719.7,0.4501]
[1739687985042,3.67643,2720.1,2719.8,0.12487939]
[1739687985244,3.67643,2720.1,2719.7,0.4501]
[1739687985444,3.6762,2720.2,2719.9,0.12477595]
[1739687985744,3.67633,2720.1,2720.0,0.12467251]
[1739687985944,3.67633,2720.1,2719.7,0.4501]
[1739687986174,3.67633,2720.1,2719.8,0.12487939]
[1739687986373,3.67633,2720.1,2719.7,0.4501]
[1739687986566,3.67633,2720.1,2719.9,0.12477595]
[1739687986881,3.67653,2720.0,2719.8,0.12487939]
[1739687987045,3.67653,2720.0,2719.5,5.53329811]
[1739687987372,3.67653,2720.0,2719.5,6.49209903]
[1739687987579,3.67651,2720.0,2719.6,3.67698]
[1739687988677,7.35255,2720.2,2719.7,3.6768]
[1739687988975,3.67623,2720.2,2719.8,0.4501]
[1739687989177,3.67639,2720.1,2719.8,0.4501]
[1739687992679,3.67661,2719.9,2719.6,0.4501]
[1739687993944,0.7514,2720.0,2719.1,0.4501]
[1739687994146,3.67714,2719.5,2719.1,0.4501]
[1739687994348,3.67737,2719.4,2719.1,0.4501]
[1739687994781,3.67737,2719.4,2718.9,4.85616811]
[1739687994971,3.67737,2719.4,2718.9,5.70958392]
[1739687995682,3.67763,2719.2,2718.9,0.4501]
[1739687996563,3.67763,2719.2,2718.9,1.85616811]
[1739687997966,3.67763,2719.2,2718.9,0.4501]
[1739687998176,3.67769,2719.1,2718.7,1.85616811]
[1739687998685,3.6779,2719.0,2718.7,1.85616811]
[1739687999458,3.67798,2718.9,2718.5,1.85616811]
[1739687999667,3.6781,2718.8,2718.5,1.85616811]
[1739687999963,3.6781,2718.8,2718.6,0.12550827]
[1739688000491,8.10766,2718.8,2718.6,0.12550827]
[1739688000658,4.4295,2718.8,2718.6,0.12550827]
[1739688000862,3.67822,2718.7,2718.6,0.12550827]
[1739688001916,4.488992,2718.7,2718.6,0.12550827]
[1739688002092,3.67843,2718.6,2718.3,0.4501]
[1739688002263,3.67843,2718.6,2718.1,1.85616811]
[1739688002467,3.67822,2718.7,2718.1,1.85616811]
[1739688002662,3.67844,2718.6,2718.1,1.85616811]
[1739688003573,3.67852,2718.5,2718.1,1.85616811]
[1739688004086,4.43011,2718.4,2718.0,0.1488]
[1739688004287,3.67887,2718.3,2718.0,0.1488]
[1739688004589,3.67886,2718.3,2718.0,0.1488]
[1739688004798,10.69675603,2718.8,2718.2,0.4501]
[1739688004959,3.67845,2718.6,2718.2,0.4501]
[1739688005160,3.67851,2718.5,2718.2,0.4501]
[1739688005781,3.67851,2718.5,2718.1,1.40606811]
[1739688005985,3.6787,2718.4,2718.1,1.40606811]
[1739688006289,3.67883,2718.3,2718.0,0.4501]
[1739688006481,4.4346,2718.4,2718.0,0.4501]
[1739688006678,5.23960903,2718.4,2717.9,1.40606811]
[1739688006870,3.67884,2718.3,2717.9,1.40606811]
[1739688009661,3.67893,2718.2,2717.9,1.40606811]
[1739688010414,3.67879,2718.3,2717.9,1.40606811]
[1739688010759,3.6789,2718.2,2717.8,0.4501]
[1739688011398,3.67904,2718.1,2717.8,0.4501]
[1739688011994,3.67922,2718.0,2717.8,0.4501]
[1739688012293,3.67922,2718.0,2717.7,1.40606811]
[1739688013195,3.67905,2718.1,2717.6,0.4501]
[1739688013396,3.67933,2717.9,2717.5,3.67984]
[1739688013635,3.67865,2718.4,2717.8,0.4501]
[1739688013636,3.67891,2718.2,2717.8,0.4501]
[1739688014596,4.43477,2718.3,2717.8,4.12951]
[1739688014802,4.43477,2718.3,2717.8,0.4501]
[1739688014803,3.67891,2718.2,2717.8,0.4501]
[1739688014977,3.67904,2718.1,2717.9,0.12246034]
[1739688015504,4.43474,2718.3,2717.9,0.12246034]
[1739688015688,3.67893,2718.2,2717.9,0.12246034]
[1739688015862,3.67905,2718.1,2717.9,0.12246034]
[1739688017767,5.26037644,2718.4,2718.2,0.12232401]
[1739688017964,5.26037644,2718.4,2718.0,3.67906]
[1739688018168,5.26037644,2718.4,2718.2,3.67883]
[1739688018367,5.26037644,2718.4,2718.3,0.12222044]
[1739688018582,5.26037644,2718.4,2718.2,7.80769]
[1739688018794,5.26037644,2718.4,2718.3,0.12222044]
[1739688019009,4.43415,2718.7,2718.2,7.80769]
[1739688019196,4.43415,2718.7,2718.3,0.12222044]
[1739688019400,0.7559,2718.7,2718.3,3.67868]
[1739688019600,0.7559,2718.7,2718.4,0.122069]
[1739688020394,0.7559,2718.7,2718.3,3.67876]
[1739688020593,0.7559,2718.7,2718.4,0.122069]
[1739688021404,4.43421,2718.7,2718.4,0.122069]
[1739688022002,4.43421,2718.7,2718.5,0.12196545]
[1739688022402,4.43421,2718.7,2718.2,4.12896]
[1739688022807,3.67849,2718.6,2718.0,4.22999]
[1739688023011,3.67851,2718.5,2718.3,0.12217256]
[1739688023170,3.67851,2718.5,2718.0,0.5509]
[1739688023508,4.50674,2718.2,2718.1,0.1223797]
[1739688032333,4.50674,2718.2,2718.1,0.15882756]
[1739688043806,4.50674,2718.2,2718.0,0.1008]
[1739688044015,3.67904,2718.1,2718.0,0.1008]
[1739688045412,9.74061644,2718.1,2718.0,0.1008]
[1739688048246,10.48816509,2718.1,2718.0,0.1008]
[1739688049550,3.68022,2717.3,2717.1,1.40865236]
[1739688049959,4.50543,2717.5,2717.2,0.15976325]
[1739688050318,3.68002,2717.4,2717.2,0.15976325]
[1739688050649,3.68012,2717.3,2717.2,0.15976325]
[1739688052047,3.67999,2717.4,2717.0,0.4501]
[1739688052254,3.68012,2717.3,2717.2,0.15994118]
[1739688052450,3.68025,2717.2,2717.1,0.16004632]
[1739688052658,3.68025,2717.2,2717.0,0.4501]
[1739688054151,3.68025,2717.2,2716.9,1.40865236]
[1739688056623,3.68009,2717.4,2716.9,1.40865236]
[1739688056821,3.68027,2717.2,2716.9,1.40865236]
[1739688060060,3.68027,2717.2,2717.0,0.16042523]
[1739688061563,3.68008,2717.4,2717.0,0.16042523]
[1739688061738,4.1488456,2717.4,2717.0,0.16042523]
[1739688061926,3.6802,2717.3,2717.0,0.16042523]
[1739688062667,3.68027,2717.2,2717.0,0.16042523]
[1739688063769,3.68019,2717.3,2717.0,0.16042523]
[1739688065172,4.1488856,2717.4,2717.0,0.16042523]
[1739688065391,3.68026,2717.2,2717.0,0.16042523]
[1739688066604,3.6802,2717.3,2717.0,0.16042523]
[1739688067262,0.4688356,2717.4,2717.0,0.16042523]
[1739688067577,7.3604,2717.3,2717.0,0.16042523]
[1739688067874,3.6802,2717.3,2717.0,0.16042523]
[1739688068078,0.4688356,2717.4,2717.0,0.16042523]
[1739688068396,3.68013,2717.3,2717.0,0.16042523]
[1739688068877,3.67993,2717.5,2717.1,1.85875236]
[1739688069202,4.155333,2717.5,2717.1,1.85875236]
[1739688069476,4.155333,2717.5,2717.2,0.16027653]
[1739688069688,3.68007,2717.4,2717.2,0.16027653]
[1739688070241,4.155253,2717.5,2717.2,0.16027653]
[1739688070444,0.475403,2717.5,2717.2,0.16027653]
[1739688070657,4.155253,2717.5,2717.2,0.16027653]
[1739688074891,4.48976,2717.7,2717.2,3.84049653]
[1739688075184,3.67966,2717.7,2717.2,3.84049653]
[1739688075558,7.35935,2717.7,2717.2,3.84049653]
[1739688076561,3.67966,2717.7,2717.2,3.84049653]
[1739688076762,3.67972,2717.6,2717.2,3.84049653]
[1739688077487,3.67966,2717.7,2717.2,3.84045653]
[1739688078482,3.67972,2717.6,2717.2,3.84045653]
[1739688079488,3.67972,2717.6,2717.2,0.16027653]
[1739688083962,3.67954,2717.8,2717.2,0.16027653]
[1739688084177,3.67959,2717.7,2717.2,3.84042653]
[1739688084396,3.67973,2717.6,2717.2,3.84042653]
[1739688084677,3.67973,2717.6,2717.2,0.16027653]
[1739688088897,7.35957,2717.6,2717.2,0.16027653]
[1739688089267,3.67973,2717.6,2717.2,0.16027653]
[1739688090302,7.35956,2717.6,2717.2,0.16027653]
[1739688090500,3.67973,2717.6,2717.2,0.16027653]
[1739688090690,3.67988,2717.5,2717.2,0.16027653]
[1739688092100,3.68005,2717.4,2717.2,0.16027653]
[1739688094273,4.46542,2717.6,2717.2,0.16027653]
[1739688094703,3.67985,2717.5,2717.2,0.16027653]
[1739688094904,4.46542,2717.6,2717.2,0.16027653]
[1739688095093,3.67998,2717.4,2717.2,0.16027653]
[1739688095298,3.67986,2717.5,2717.2,0.16027653]
[1739688097606,3.67958,2717.7,2717.2,0.16027653]
[1739688097796,7.829868,2717.7,2717.4,0.4501]
[1739688098000,3.67972,2717.6,2717.4,0.4501]
[1739688098301,3.67972,2717.6,2717.5,0.15987902]
[1739688101029,0.470628,2717.7,2717.5,0.15987902]
[1739688101392,4.44198,2718.0,2717.5,1.56853138]
[1739688101598,3.94304,2718.1,2717.7,1.85875236]
[1739688101999,3.94304,2718.1,2717.8,0.15954318]
[1739688103333,4.781509,2718.1,2717.8,0.15954318]
[1739688104829,3.67851,2718.5,2717.8,0.15954318]
[1739688105012,3.6788,2718.3,2717.9,1.40865236]
[1739688105403,3.6788,2718.3,2718.0,0.15919956]
[1739688105727,7.35768,2718.3,2718.0,0.15919956]
[1739688105929,3.6789,2718.2,2718.0,0.15919956]
[1739688108940,4.44174,2718.1,2718.0,0.15919956]
[1739688109235,3.67966,2717.7,2717.5,0.4501]
[1739688109413,3.67966,2717.7,2717.4,5.37]
[1739688110027,3.6794,2717.9,2717.4,5.37]
[1739688110340,3.67951,2717.8,2717.5,1.40865236]
[1739688111842,3.6796,2717.7,2717.5,1.40865236]
[1739688112133,4.49151,2717.8,2717.3,1.85875236]
[1739688112336,3.67966,2717.7,2717.3,1.85875236]
[1739688114206,3.68011,2717.4,2717.1,1.40865236]
[1739688114404,1.076,2717.7,2717.1,1.40865236]
[1739688114738,3.68014,2717.3,2717.1,1.40865236]
[1739688119340,3.68025,2717.2,2717.1,1.40865236]
[1739688119741,3.68025,2717.2,2717.0,0.4501]
[1739688120253,3.68025,2717.2,2717.1,0.15460608]
[1739688120823,3.68025,2717.2,2716.9,1.40865236]
[1739688121046,3.68025,2717.2,2717.1,0.15459587]
[1739688121252,3.68025,2717.2,2717.0,0.15470102]
[1739688121427,3.68025,2717.2,2717.1,0.15459587]
[1739688121745,3.68025,2717.2,2716.9,1.40865236]
[1739688121945,3.68025,2717.2,2717.1,0.15459587]
[1739688122146,3.68025,2717.2,2716.9,1.40865236]
[1739688122345,3.68025,2717.2,2717.1,0.15459587]
[1739688122511,3.68025,2717.2,2716.9,1.40865236]
[1739688122711,3.68025,2717.2,2717.1,0.15459587]
[1739688123034,3.68052,2717.0,2716.9,1.40865236]
[1739688123417,0.7817,2717.1,2716.5,1.85875236]
[1739688123622,3.6809,2716.8,2716.5,1.85875236]
[1739688123843,3.68094,2716.7,2716.5,1.85875236]
[1739688124356,3.68094,2716.7,2716.3,1.40865236]
[1739688125240,3.6809,2716.8,2716.3,1.40865236]
[1739688125445,3.68108,2716.6,2716.3,1.40865236]
[1739688125652,3.68134,2716.4,2716.3,1.40865236]
[1739688125830,3.68134,2716.4,2716.1,1.40865236]
[1739688127143,0.448834,2716.3,2715.7,1.40865236]
[1739688127319,3.68193,2716.0,2715.7,1.40865236]
[1739688128338,3.68209,2715.9,2715.7,1.40865236]
[1739688128714,3.68211,2715.9,2715.7,1.40865236]
[1739688129151,3.68219,2715.8,2715.5,1.85875236]
[1739688129747,3.68219,2715.8,2715.5,0.4501]
[1739688129950,3.68219,2715.8,2715.4,5.37]
[1739688130453,7.36445,2715.8,2715.4,5.37]
[1739688130661,8.100895,2715.8,2715.3,0.4501]
[1739688130859,4.418635,2715.8,2715.3,0.4501]
[1739688131152,3.68232,2715.7,2715.3,0.4501]
[1739688131364,4.48932,2715.7,2715.3,0.4501]
[1739688131922,4.48932,2715.7,2715.3,4.13292]
[1739688131923,0.807,2715.7,2715.3,4.13292]
[1739688132128,0.807,2715.9,2715.4,3.68267]
[1739688132524,3.68238,2715.7,2715.3,0.4501]
[1739688132724,7.36479,2715.7,2715.3,0.4501]
[1739688132948,3.68237,2715.7,2715.3,0.4501]
[1739688133162,3.68216,2715.8,2715.3,4.13285]
[1739688133522,3.68216,2715.8,2715.3,0.4501]
[1739688133725,3.68216,2715.8,2715.3,4.13287]
[1739688134048,3.68216,2715.8,2715.3,0.4501]
[1739688134253,3.68234,2715.7,2715.3,0.4501]
[1739688134761,4.5470191,2715.7,2715.3,0.4501]
[1739688135059,3.68249,2715.6,2715.4,0.15129394]
[1739688135557,3.68264,2715.5,2715.1,0.4501]
[1739688135750,7.36528,2715.5,2715.1,0.4501]
[1739688136058,3.68264,2715.5,2715.1,0.4501]
[1739688136669,4.5470491,2715.7,2715.1,0.4501]
[1739688136863,0.8646791,2715.7,2715.1,0.4501]
[1739688137029,3.68254,2715.6,2715.2,2.75009232]
[1739688137231,3.68252,2715.6,2715.2,2.75009232]
[1739688137978,7.36502,2715.6,2715.2,2.75009232]
[1739688138286,3.6825,2715.6,2715.2,2.75009232]
[1739688140043,3.68223,2715.8,2715.2,6.43305232]
[1739688140280,3.68234,2715.7,2715.2,6.43305232]
[1739688142685,3.68234,2715.7,2715.2,6.43298232]
[1739688143781,4.157553,2715.8,2715.2,6.43298232]
[1739688144072,3.68231,2715.7,2715.2,6.43298232]
[1739688144585,3.68236,2715.7,2715.2,6.43298232]
[1739688145180,3.68236,2715.7,2715.2,10.11587232]
[1739688145388,3.68236,2715.7,2715.2,6.43298232]
[1739688145574,3.68249,2715.6,2715.1,0.4501]
[1739688145770,3.68249,2715.6,2715.1,4.13316]
[1739688147290,3.68249,2715.6,2715.2,3.68293]
[1739688147586,0.8217,2714.5,2713.5,3.68514]
[1739688147790,0.8217,2714.5,2713.4,0.4501]
[1739688147989,0.8217,2714.5,2713.7,4.13509]
[1739688148287,0.8217,2714.5,2713.8,3.68486]
[1739688148488,3.68461,2714.0,2713.7,0.4501]
[1739688148785,3.68486,2713.8,2713.2,4.13576]
[1739688149225,3.68486,2713.8,2713.2,0.4501]
[1739688149491,3.68466,2714.0,2713.3,0.413582]
[1739688149890,3.68478,2713.9,2713.3,4.099062]
[1739688150185,3.68466,2714.0,2713.4,3.6854]
[1739688150390,3.68466,2714.0,2713.4,3.82442212]
[1739688150596,0.8217,2714.5,2713.4,0.13902212]
[1739688150765,0.266,2714.3,2713.5,0.78036964]
[1739688150961,3.9502,2714.3,2713.7,3.68489]
[1739688151156,0.266,2714.3,2713.7,3.68489]
[1739688151361,0.266,2714.3,2713.6,0.13882483]
[1739688151362,0.8217,2714.5,2713.8,0.13861401]
[1739688151596,0.7505387,2714.8,2714.4,0.4501]
[1739688151772,0.7815,2715.1,2714.4,0.4501]
[1739688151976,3.68366,2714.7,2714.5,0.13785944]
[1739688152476,7.36742,2714.7,2714.5,0.13785944]
[1739688152670,3.68366,2714.7,2714.5,0.13785944]
[1739688152897,4.052026,2714.7,2714.2,0.4501]
[1739688153193,4.052026,2714.7,2714.3,0.13807015]
[1739688153194,3.68395,2714.5,2714.3,0.13807015]
[1739688153369,3.68383,2714.6,2714.2,0.4501]
[1739688153695,3.68383,2714.6,2714.4,0.13796479]
[1739688153876,3.68383,2714.6,2714.3,0.13807015]
[1739688154076,3.68383,2714.6,2714.5,0.13785944]
[1739688154259,3.68383,2714.6,2714.4,0.13796479]
[1739688154665,3.68345,2714.9,2714.2,0.4501]
[1739688154866,3.95026,2715.0,2714.5,0.13785944]
[1739688155089,4.46463,2715.1,2714.5,3.68387]
[1739688155364,3.68299,2715.2,2714.7,0.4501]
[1739688155697,3.68311,2715.1,2714.7,0.4501]
[1739688156202,3.68331,2715.0,2714.8,0.13736719]
[1739688157114,4.48257,2714.9,2714.8,0.13736719]
[1739688157265,4.48257,2714.9,2714.1,0.4501]
[1739688157266,3.68384,2714.6,2714.1,0.4501]
[1739688157667,3.68355,2714.8,2714.2,0.13337146]
[1739688157884,3.68355,2714.8,2714.2,3.81761146]
[1739688158185,0.7992,2714.9,2714.2,3.81763146]
[1739688158386,4.48262,2714.9,2714.4,3.68405]
[1739688158703,3.68342,2714.9,2714.3,3.81743958]
[1739688158902,7.36666,2715.0,2714.5,0.13306887]
[1739688159080,4.499896,2715.0,2714.5,4.134]
[1739688159265,0.7992,2715.1,2714.6,0.13299385]
[1739688159470,7.36604,2715.2,2714.7,3.68361]
[1739688159673,3.68311,2715.1,2714.6,0.13299385]
[1739688159869,3.68333,2715.0,2714.8,0.13278319]
[1739688160094,3.68337,2714.9,2714.7,0.13288852]
[1739688160303,3.68337,2714.9,2714.5,0.4501]
[1739688161300,3.68333,2715.0,2714.5,0.4501]
[1739688161883,3.68333,2715.0,2714.6,0.13299385]
[1739688162084,3.68339,2714.9,2714.6,0.13299385]
[1739688162403,7.36666,2715.0,2714.6,0.13299385]
[1739688163174,4.48264,2714.9,2714.6,0.13299385]
[1739688163374,4.48264,2714.9,2714.4,3.68402]
[1739688163570,0.7992,2714.9,2714.7,0.13288852]
[1739688163775,4.419996,2715.0,2714.4,3.68402]
[1739688163974,4.419996,2715.0,2714.8,0.13278319]
[1739688164175,4.419996,2715.0,2714.4,3.68402]
[1739688164475,3.6831,2715.1,2714.9,0.13267787]
[1739688164670,3.6831,2715.1,2714.8,0.4501]
[1739688164906,3.6831,2715.1,2715.0,0.13257256]
[1739688165110,3.6831,2715.1,2714.9,0.13267787]
[1739688165411,3.6831,2715.1,2715.0,0.13257256]
[1739688165609,3.6831,2715.1,2714.8,0.4501]
[1739688165902,3.6831,2715.1,2715.0,0.13257256]
[1739688166108,3.68298,2715.2,2714.9,0.13267787]
[1739688166313,7.91638769,2715.2,2715.0,0.13257256]
[1739688166485,4.23331769,2715.2,2715.0,0.13257256]
[1739688166686,3.68321,2715.1,2714.8,0.4501]
[1739688170209,3.68298,2715.2,2714.8,0.4501]
[1739688170913,7.36604,2715.2,2714.8,0.4501]
[1739688171915,3.68298,2715.2,2714.8,0.4501]
[1739688172209,3.68321,2715.1,2714.5,4.13399]
[1739688172399,3.68321,2715.1,2714.6,3.68372]
[1739688172903,3.68326,2715.0,2714.5,7.81783]
[1739688173118,3.68318,2715.1,2714.6,3.68376]
[1739688173287,3.68318,2715.1,2714.5,4.13394]
[1739688173615,3.68324,2715.0,2714.5,4.13394]
[1739688175216,3.68324,2715.0,2714.5,0.4501]
[1739688175517,3.68353,2714.8,2714.5,0.4501]
[1739688176316,0.7781,2714.9,2714.5,0.4501]
[1739688176520,4.46147,2714.9,2714.5,0.4501]
[1739688176729,1.592571,2714.9,2714.5,0.4501]
[1739688177017,3.68373,2714.7,2714.3,3.0]
[1739688178826,3.68351,2714.8,2714.3,6.68415]
[1739688179798,7.36712,2714.8,2714.3,6.68415]
[1739688180003,7.36712,2714.8,2714.4,0.13305625]
[1739688180206,3.68391,2714.5,2714.4,0.13305625]
[1739688180404,0.368391,2714.5,2714.0,6.88475232]
[1739688180724,3.68353,2714.8,2714.4,0.13305625]
[1739688180725,3.68374,2714.7,2714.4,0.13305625]